Cogmind - Beta 15 @@@ ROGUE MODE // 2025.07.05 @ 03:06:02 Player: puppuppit Result: Destroyed by as-87134 with Assembled Maul Performance ------------- Evolutions (0) 0 Regions Visited (4) 800 Robots Destroyed (48) 240 Value Destroyed (806) 806 Prototype IDs (0) 0 Alien Tech Used (0) 0 Bonus (60) 60 TOTAL SCORE: 1906 Bonus ------- Follower Combat Kills 60 Cogmind --------- Core Integrity 0/250 Matter 300/300 Energy 100/100 System Corruption 4% Temperature Cool (0) Movement Treading (160) Location -9/Mines Parts ------- > --- POWER (1) -------- (None) > --- PROPULSION (2) --- Light Treads Improved Treads > --- UTILITY (2) ------ Large Storage Unit Core Shielding > --- WEAPON (2) ------- Assault Rifle Heavy Assault Rifle > --- INVENTORY (15) --- Light Treads Light Treads Medium Matter Pod (100) High-capacity Matter Pod (200) Transport Network Coupler Improved Targeting Computer Improved Targeting Computer Armor Integrity Analyzer Light Armor Plating Light Armor Plating Light Assault Rifle Light Assault Rifle Light Assault Rifle Light Assault Rifle Subdweller Machine Gun Peak State ------------ > --- POWER ------------ Light Nuclear Core > --- PROPULSION ------- Light Treads Light Treads > --- UTILITY ---------- Large Storage Unit Core Shielding > --- WEAPON ----------- Assault Rifle Heavy Assault Rifle > --- INVENTORY -------- Fission Core Fission Core Light Treads Wheel Wheel Medium Matter Pod High-capacity Matter Pod Targeting Computer Core Shielding Light Armor Plating Light Armor Plating Light Assault Rifle Light Assault Rifle Subdweller Machine Gun [Rating: 12] Favorites ----------- Power Ion Engine Engine Ion Engine Power Core Light Nuclear Core Propulsion Light Treads Treads Light Treads Utility Large Storage Unit Device Improved Terrain Scanner Storage Large Storage Unit Hackware Hacking Suite Protection Core Shielding Weapon Light Assault Rifle Energy Gun EM Pulse Gun Ballistic Gun Light Assault Rifle Impact Weapon Hammer Build | -11 -10 -10 -10 -9 ------- Run | Yrd Mat Min Exi Min Slots Evolved . | . . . . . Power . | . . . . . Propulsion . | . . . . . Utility . | . . . . . Weapon . | . . . . . Parts Attached 25 | 7 8 3 1 6 Power 3 | 1 . 1 . 1 Engine 2 | 1 . . . 1 Core 1 | . . 1 . . Reactor . | . . . . . Propulsion 6 | 2 1 . . 3 Treads 6 | 2 1 . . 3 Leg . | . . . . . Wheel . | . . . . . Hover . | . . . . . Flight . | . . . . . Utility 8 | 2 3 1 1 1 Device 1 | 1 . . . . Storage 3 | 1 1 . 1 . Processor . | . . . . . Hackware 1 | . 1 . . . Protection 3 | . 1 1 . 1 Artifact . | . . . . . Weapon 8 | 2 4 1 . 1 Energy Gun 2 | 1 1 . . . Energy Cannon . | . . . . . Ballistic Gun 5 | 1 2 1 . 1 Ballistic Cannon . | . . . . . Launcher . | . . . . . Special Weapon . | . . . . . Impact Weapon 1 | . 1 . . . Slashing Weapon . | . . . . . Piercing Weapon . | . . . . . Special Melee Weapon . | . . . . . Unidentified Prototypes . | . . . . . Corrupted Parts 1 | . 1 . . . System Corruption 1 | . 1 . . . Parts Lost 7 | . 3 1 . 3 Power 3 | . . 1 . 2 Propulsion 2 | . 1 . . 1 Utility . | . . . . . Weapon 2 | . 2 . . . Highest Loss Streak 1 | . 1 1 . 1 To Critical Strikes . | . . . . . Average Backups 13 | . 11 14 15 14 Power . | . . . 1 1 Propulsion 1 | . . 1 3 3 Utility 7 | . 8 8 6 6 Weapon 3 | . 1 4 4 3 Tool/Special . | . . . . . Unused Backups 21 | . . 2 3 16 Power 2 | . . . . 2 Propulsion 3 | . . . . 3 Utility 13 | . . 2 2 9 Weapon 3 | . . . 1 2 Tool/Special . | . . . . . Average Slot Usage (%) 95 | . 99 99 73 96 Engine 7 | . 14 5 . 3 Core 5 | . . 8 14 8 Treads 27 | . 27 28 28 28 Device 1 | . 2 . . . Storage 14 | . 14 14 14 14 Hackware 3 | . 5 4 . . Protection 9 | . 5 9 14 14 Energy Gun 2 | . 7 . . . Ballistic Gun 21 | . 19 28 2 27 Peak Build Rating 12 | 9 11 11 10 12 Average Rating 9 | 7 9 10 9 11 On Entrance 7 | . 9 11 10 9 Naked Turns . | . . . . . Heaviest Build 33 | 15 32 29 29 33 Greatest Support 43 | 40 40 40 40 43 Greatest Overweight (x) 1 | . 1 . . 1 Average Overweight (x) . | . . . . . Largest Inventory Capacity 15 | 8 15 15 15 15 Average Capacity 14 | 7 14 15 15 15 Most Carried 15 | 2 15 15 15 15 Average Carried 13 | . 11 14 14 14 Final Capacity 15 | 8 15 15 15 15 Final Carried 15 | 2 15 15 15 15 Class Distribution -------------------- 77% | Mutant 22% | Scavenger-Mutant Dominant Class ---------------- Mutant | -10/Materials Mutant | -10/Mines Mutant | -10/Exiles Mutant | -9/Mines Resources | -11 -10 -10 -10 -9 ----------- Run | Yrd Mat Min Exi Min Matter Collected 1197 | 350 507 131 19 190 Remotely . | . . . . . Salvage Created 1647 | 263 961 243 . 180 Parts 114 | 19 63 23 . 9 Haulers Intercepted 2 | . 2 . . . Recyclers Shooed 1 | . . 1 . . Parts Field Recycled . | . . . . . Retrieved Matter . | . . . . . Parts Self-Destructed . | . . . . . Prevented . | . . . . . Kills | -11 -10 -10 -10 -9 ------- Run | Yrd Mat Min Exi Min Combat Hostiles Destroyed 27 | . 21 2 . 4 Melee 2 | . 2 . . . Guns 22 | . 16 2 . 4 AOE 3 | . 3 . . . Classes Destroyed 9 | 3 4 . . 2 Worker 7 | 2 3 2 . . Tunneler 8 | 5 1 2 . . Hauler 2 | . 2 . . . Recycler 5 | 1 2 1 . 1 Operator 1 | . 1 . . . Swarmer 8 | . 8 . . . Grunt 15 | . 13 2 . . Sentry 2 | . . . . 2 Assembled 2 | . . . . 2 Best Kill Streak 7 | 6 7 1 . 2 Combat Bots Only 6 | . 6 1 . 2 Max Kills in Single Turn 4 | 1 4 1 . 1 Gunslinging . | . . . . . Exploded 3 | . 3 . . . Melee 1 | . 1 . . . Uniques/NPCs Destroyed . | . . . . . Combat | -11 -10 -10 -10 -9 -------- Run | Yrd Mat Min Exi Min Hostile Shots Fired 155 | . 100 22 . 33 Missed 36 | . 25 3 . 8 Hits 119 | . 75 19 . 25 Melee 10 | . . . . 10 Projectile 109 | . 75 19 . 15 Critical Strikes 1 | . . . . 1 Actively Blocked 1 | . . . . 1 Part Disruptions 1 | . . . . 1 Damage Taken 1570 | . 822 246 . 502 Core 262 | . 143 29 . 90 Absorbed by Shields . | . . . . . Redirected to Shielding 22 | . . 6 . 16 Regen/Repaired (Parts) 114 | . 114 . . . Core Remaining (%) 100 | 100 . . . . Volleys Fired 133 | 11 72 34 . 16 Largest 2 | 2 2 2 . 2 Hottest 60 | 60 60 40 . 43 Shots Fired 262 | 22 139 69 . 32 Gun 262 | 22 139 69 . 32 Cannon . | . . . . . Launcher . | . . . . . Special . | . . . . . Kinetic 201 | 11 89 69 . 32 Thermal 1 | . 1 . . . Explosive . | . . . . . Electromagnetic 60 | 11 49 . . . Robot Hit Streak 11 | 5 8 11 . 4 Robot Miss Streak 4 | 2 4 2 . 4 Penetration Max . | . . . . . Secondary Targets 2 | . 1 . . 1 Max Gunslinging Chain 1 | . 1 . . 1 Shots Hit Robots 164 | 11 91 49 . 13 Core Hits 85 | 8 48 20 . 9 Critical Kills 1 | . 1 . . . Critical Parts Destroyed . | . . . . . Critical Strikes 1 | . 1 . . . Smash 1 | . 1 . . . Melee Attacks 11 | . 11 . . . Impact 11 | . 11 . . . Slashing . | . . . . . Piercing . | . . . . . Sneak Attacks . | . . . . . Combat Hostiles . | . . . . . Follow-up Attacks . | . . . . . Damage Inflicted 2075 | 216 1276 407 . 176 Guns 1689 | 147 962 407 . 173 Cannons . | . . . . . Explosions 190 | 69 121 . . . Melee 193 | . 193 . . . Ramming 3 | . . . . 3 Kinetic 1216 | 42 594 407 . 173 Thermal 190 | 69 121 . . . Explosive . | . . . . . Electromagnetic 473 | 105 368 . . . Impact 193 | . 193 . . . Slashing . | . . . . . Piercing . | . . . . . Highest Corruption 1 | . 1 1 1 1 Average Corruption 1 | . 1 1 1 1 Corruption Purged . | . . . . . Corruption Blocked . | . . . . . Effects 22 | . 4 6 2 10 Message Errors 6 | . 2 . . 4 Matter Fused 6 | . 1 2 1 2 Heat Flow Errors 2 | . . . . 2 Energy Discharges 3 | . 1 . 1 1 Parts Fused 1 | . . 1 . . Data Loss (minor) 2 | . . 1 . 1 Misfires 2 | . . 2 . . Overload Shots . | . . . . . Overflow Damage . | . . . . . Projectiles . | . . . . . Explosions . | . . . . . Melee . | . . . . . Knockbacks 2 | . 2 . . . Impact 2 | . 2 . . . Kinetic . | . . . . . Secondary . | . . . . . Self-Inflicted Damage 27 | . 27 . . . Shots 1 | . 1 . . . Rammed 1 | . . . . 1 Targets Rammed 1 | . . . . 1 Kicked . | . . . . . Crushed . | . . . . . Highest Temperature 249 | . 105 18 . 249 Average Temperature 28 | . 26 5 . 75 Received Heat Transfer 525 | . 318 138 . 69 Siege Activations . | . . . . . Martial Activations . | . . . . . Shielding Activations . | . . . . . Robots Disrupted . | . . . . . Combat Hostiles . | . . . . . Robots Corrupted . | . . . . . Combat Hostiles . | . . . . . Parts Fried . | . . . . . Impact Corruptions . | . . . . . Robots Melted . | . . . . . Combat Hostiles . | . . . . . Parts Melted . | . . . . . Heat Transferred 400 | 100 300 . . . Parts Sabotaged . | . . . . . Parts Stolen . | . . . . . Parts Stripped . | . . . . . Power Chain Reactions 3 | 1 2 . . . Alert | -11 -10 -10 -10 -9 ------- Run | Yrd Mat Min Exi Min Maximum Alert Level 1 | . 1 . . . Low Security (%) 91 | 100 79 100 . 100 Level 1 8 | . 20 . . . Level 2 . | . . . . . Level 3 . | . . . . . Level 4 . | . . . . . Level 5 . | . . . . . High Security . | . . . . . Max Security . | . . . . . Peak Influence 253 | 15 253 60 . 30 Initial 49 | . . 49 . . Average 59 | 3 136 10 . 1 Influence Increases 869 | 40 641 143 . 45 Destroy 0b10 Robot/C 540 | . 420 80 . 40 Destroy 0b10 Robot/NC 115 | 40 45 25 . 5 Destroy Leader 104 | . 84 20 . . Allied During Kill 3 | . . 3 . . Successful Hack 11 | . 11 . . . Destroy Structure 6 | . 6 . . . Lose Combat Pursuer 90 | . 75 15 . . Influence Decreases 869 | 40 512 238 34 45 Entered New Map 114 | . . 80 34 . Time Decay 715 | 40 482 148 . 45 Lost Part 40 | . 30 10 . . Squads Dispatched 7 | . 7 . . . Investigation 6 | . 6 . . . Extermination . | . . . . . Reinforcement 1 | . 1 . . . Assault . | . . . . . Garrison . | . . . . . Intercept . | . . . . . Searches Triggered . | . . . . . Construction Impeded . | . . . . . Haulers Reinforced . | . . . . . Active Scanning Responses . | . . . . . Cargo Convoy Interrupts . | . . . . . Stealth | -11 -10 -10 -10 -9 --------- Run | Yrd Mat Min Exi Min Distress Signals 3 | . 3 . . . Communications Jammed . | . . . . . Distress Signals . | . . . . . Times Spotted 51 | . 34 4 . 13 Peak Tracking Total 6 | . 6 2 . 5 Tactical Retreats 8 | . 6 1 . 1 Traps | -11 -10 -10 -10 -9 ------- Run | Yrd Mat Min Exi Min Traps Triggered 2 | . 2 . . . Indirectly . | . . . . . Trap Hack Attempts . | . . . . . Triggered . | . . . . . Disarmed . | . . . . . Reprogrammed . | . . . . . Reused . | . . . . . Traps Extracted . | . . . . . Installed . | . . . . . Triggered . | . . . . . Machines | -11 -10 -10 -10 -9 ---------- Run | Yrd Mat Min Exi Min Machines Disabled 1 | . 1 . . . Max in Single Turn 1 | . 1 . . . Machines Repaired . | . . . . . Machines Dismantled . | . . . . . Machines Sabotaged . | . . . . . Overloaded Fab Kills . | . . . . . Hacking | -11 -10 -10 -10 -9 --------- Run | Yrd Mat Min Exi Min Machines Accessed 10 | . 9 . 1 . Terminals 6 | . 6 . . . Fabricators . | . . . . . Repair Stations 1 | . 1 . . . Recycling Units 2 | . 2 . . . Scanalyzers . | . . . . . Garrison Access . | . . . . . Total Hacks 34 | . 33 . 1 . Successful 20 | . 19 . 1 . Failed 13 | . 13 . . . Catastrophic . | . . . . . Database Lockouts 1 | . 1 . . . Manual 25 | . 25 . . . Terminals 20 | . 20 . . . Fabricators . | . . . . . Repair Stations 4 | . 4 . . . Recycling Units 9 | . 9 . . . Scanalyzers . | . . . . . Garrison Access . | . . . . . Terminal Hacks 4 | . 3 . 1 . Record 1 | . . . 1 . Robot Analysis 3 | . 3 . . . Fabricator Hacks . | . . . . . Repair Station Hacks 3 | . 3 . . . Scan Component 2 | . 2 . . . Repair 1 | . 1 . . . Recycling Unit Hacks 3 | . 3 . . . Retrieve Components 3 | . 3 . . . Scanalyzer . | . . . . . Garrison Access Hacks . | . . . . . Unauthorized Hacks 10 | . 10 . . . Terminals 5 | . 5 . . . Botnet 5 | . 5 . . . Fabricators . | . . . . . Repair Stations . | . . . . . Recycling Units 5 | . 5 . . . Monitor 1 | . 1 . . . Reject 2 | . 2 . . . Recyclers 1 | . 1 . . . Mask 1 | . 1 . . . Scanalyzers . | . . . . . Garrison Access . | . . . . . Data Cores Recovered . | . . . . . Used . | . . . . . Hacking Detections 8 | . 8 . . . Full Trace Events 3 | . 3 . . . Feedback Events . | . . . . . Feedback Blocked . | . . . . . Robot Schematics Acquired . | . . . . . Robots Built . | . . . . . Authchips . | . . . . . Time . | . . . . . Total Robot Build Rating . | . . . . . Part Schematics Acquired . | . . . . . Parts Built . | . . . . . Authchips . | . . . . . Time . | . . . . . Total Part Build Rating . | . . . . . Parts Repaired 1 | . 1 . . . Time 36 | . 36 . . . Parts Recycled . | . . . . . Recycled Matter . | . . . . . Retrieved Matter . | . . . . . Retrieved Components 23 | . 23 . . . Parts Scanalyzed . | . . . . . Part Schematics Acquired . | . . . . . Parts Damaged . | . . . . . Bothacking | -11 -10 -10 -10 -9 ------------ Run | Yrd Mat Min Exi Min Used RIF Installer . | . . . . . Robots Hacked . | . . . . . Non-combat . | . . . . . Combat . | . . . . . Robot Hacks Applied . | . . . . . Relay Couplers Released . | . . . . . Fabnet Peak Effective % . | . . . . . Robots Rewired . | . . . . . Allies Hacked . | . . . . . Hacks Repelled . | . . . . . Allies | -11 -10 -10 -10 -9 -------- Run | Yrd Mat Min Exi Min Total Allies 1 | . . 1 . . Largest Group 1 | . . 1 . . Highest-Rated Group 31 | . . 31 . . Highest-Rated Ally 31 | . . 31 . . Total Orders . | . . . . . Ally Attacks 12 | . . 12 . . Total Damage 146 | . . 146 . . Kills 2 | . . 2 . . Allies Corrupted . | . . . . . Allies Melted . | . . . . . Intel | -11 -10 -10 -10 -9 ------- Run | Yrd Mat Min Exi Min Active Infowar (turns) 364 | 77 287 . . . Terrain 364 | 77 287 . . . Robot Analysis Total 3 | . 3 . . . Derelict Logs Recovered 3 | . . 1 . 2 Drone Launches . | . . . . . Drone Recoveries . | . . . . . Exploration | -11 -10 -10 -10 -9 ------------- Run | Yrd Mat Min Exi Min Turns Passed 4056 | 125 1477 853 487 1114 Spaces Moved 2162 | 53 730 471 301 607 Core 4 | 4 . . . . Treads 2158 | 49 730 471 301 607 Legs . | . . . . . Wheels . | . . . . . Hover . | . . . . . Flight . | . . . . . Fastest Speed 50 | 50 160 160 160 160 Average Speed 160 | 151 160 160 160 160 Slowest Speed 240 | 160 240 160 160 240 Overloaded Moves . | . . . . . Propulsion Burnouts . | . . . . . Robots Hopped . | . . . . . Potential Cave-ins . | . . . . . Cave-ins Triggered . | . . . . . Exploration Rate (%) 60 | 5 94 87 52 63 Regions Visited 4 Branch Regions 3 Pre-discovered Areas 2 | . . . 1 1 Known Exits Taken 1 | . . . 1 . Unknown Exits Taken 3 | 1 1 1 . . Scrap Searched 3 | . . 2 . 1 Spaces Dug . | . . . . . Terrain Destroyed 7 | 3 4 . . . Melee . | . . . . . Projectile . | . . . . . AOE 7 | 3 4 . . . Terrain Rammed . | . . . . . Walls Destroyed . | . . . . . Machines Disabled . | . . . . . Actions | -11 -10 -10 -10 -9 --------- Run | Yrd Mat Min Exi Min Total 2497 | 72 881 515 312 717 Wait 113 | . 40 2 . 71 Move 2158 | 52 729 470 300 607 Hop . | . . . . . Pick Up 31 | 2 16 3 3 7 Fast Attach 11 | 7 2 1 . 1 Attach 6 | . 3 . . 3 Detach 3 | . 1 . 2 . Swap 12 | . 5 2 1 4 Drop 18 | . 2 3 6 7 Fire 133 | 11 72 34 . 16 Melee 11 | . 11 . . . Ram . | . . . . . Kick . | . . . . . Crush 1 | . . . . 1 Escape Stasis . | . . . . . Rewire . | . . . . . Trap . | . . . . . Miscellaneous . | . . . . . Route ------- -11/Scrapyard -10/Materials (discovered 5 exits: [*Mat x3] / [*Min] / [*Sub]) -10/Mines (discovered 3 exits: [*Mat x2] / *Exi) -10/Exiles (discovered 2 exits: *Min x2) -9/Mines History --------- Turn | Location | Event 10 | -11/Scrapyard | Discovered new exit (range 13) 126 | -11/Scrapyard | Entered Materials 284 | -10/Materials | Discovered new exit (range 15) 321 | -10/Materials | Build established: Mutant 554 | -10/Materials | Discovered new exit (range 12) 626 | -10/Materials | Derelicts attacked the area 741 | -10/Materials | Discovered new exit (range 5) 954 | -10/Materials | Discovered new exit (range 12) 1022 | -10/Materials | Repaired Broken Lgt. Treads 1052 | -10/Materials | Core integrity fell below 50% 1097 | -10/Materials | Central database locked down 1386 | -10/Materials | Build established: Scavenger-Mutant 1428 | -10/Materials | Discovered new exit (range 8) 1603 | -10/Materials | Entered Mines 2148 | -10/Mines | Received a Mining Laser from a helpful Derelict 2148 | -10/Mines | Discovered new exit (range 14) 2276 | -10/Mines | Discovered new exit (range 5) 2328 | -10/Mines | Build established: Mutant 2450 | -10/Mines | Deemed a non-threat by the Exiles lab entrance 2450 | -10/Mines | Discovered new exit (range 5) 2456 | -10/Mines | Entered Exiles 2457 | -10/Exiles | Identified exit to Mines 2506 | -10/Exiles | Met 8R-AWN 2532 | -10/Exiles | Met EX-HEX 2631 | -10/Exiles | Met EX-DEC 2742 | -10/Exiles | Learned location of Zion (-7) 2943 | -10/Exiles | Entered Mines 2944 | -9/Mines | Assembled infested the area 2949 | -9/Mines | Assisted by a Guerilla fighting off Assembled 2955 | -9/Mines | Core integrity fell below 20% 3014 | -9/Mines | Learned location of Storage (-7) 3760 | -9/Mines | Learned 2 Materials zone layouts 4057 | -9/Mines | Destroyed by as-87134 with Assembled Maul Last Messages --------------- 03780_ Found Salvage Targeting Computer. 03780_ Found Imp. Ion Engine. 03780_ Found Transport Network Coupler. 03780_ Found 65 Matter. 03781_ Acquired 19 matter. 03785_ Acquired 10 matter. 03788_ Acquired Imp. Ion Engine. 03789_ Acquired 10 matter. 03791_ Dropped Wheel. 03793_ Acquired Transport Network Coupler. 03795_ System corrupted: Energy discharge (-36). 03864_ System corrupted: Matter fused (-7). 03961_ Acquired 7 matter. 03966_ Dropped Wheel. 03966_ Acquired Lgt. Assault Rifle. 04031_ T-07 Excavator destroyed. 04039_ Slammed into as-87134. 04051_ Acquired 10 matter. 04057_ Imp. Ion Engine destroyed. 04057_ System corrupted by crushing effect (+3). Map ----- +----------------------------------------------------+ | ???????????????# * #????????????????????? | | ???????????????# ##### #????????????????????? | | ???????????????#%%#???# #????????????????????? | | ???????????????# ???# ####################?? | | ???????????????#%* ???# ##? | | ??????????????? ! ??################ %= #? | | ?????????????? ?????????????????# ! #? | | ?????????????? ##????????????????## #? | | ????????????? ##??????????????????### ## | | ???????????? #?????????????????????## # | | ???????????? ???????????????????????# # | | ??????????? %??????????????????????## ## | | ???????????##*=!a!??????????????????????# ## | | ????????????##=% ??????????????????????# # | | ?????????????#%! ??????????????????????# # | | ?????????????#*!= #?????????????????????## " | | ?????????####!?=! #?????????????????????#""!" | | ????????? ==%!!"""|!?????????????????????##" | | ??????????=**=="""%*#?######??????????????##%" | | ??????????##!%*"""== ## ##?????????????##%# | | ??????????#=%!=| ! * #?????????????#= = | | ???????????!***|=% % #?????????????#%%* | | ???????????????# = ! ! ##?????????????#*%= | | ???????????????## !a! #???####???????# =% | | ????????? ????## # #??## ##??????# ! | | ????????? ???#* ! @a## #### #??????### | | ????????? ##|||%= ### ##= #????????# | | ?????????%%=*!%!!%!####?# # #??#####?# | | ???????%!=u%=%!=!*??????# # #?## ### | | ???????######%!=*?????### ## #?# | | ????????????##* ##?## ## ### | | ?????????????#???# ##% % | | ?????????????????#%!%=%* ! | | ?????????????????##*!%== %= ### = | | ??????????????????####* %** ##?# !%= | | ?????????????????????## * ##??##### * | | ??????????????????????# % ##???????## | | ??????????????????????## % ##?????????## | | ???????????????????????## ##???????????## | | ????????????????????????# #?????????????#### | | ????????????????????????#####????????????????# | | ?????????????????????????????????????????????? | | ?????????????????????????????????????????????? | | | | | | | | | | | | | | | +----------------------------------------------------+ Best States ------------- Heat Dissipation 25 Energy Generation 14 Energy Capacity 265 Matter Stores 300 Matter Capacity 300 Sight Range 16 Terrain Scan Range 16 Terrain Scan Density 10 Armor Coverage 150 Core Shielding 20 Evasion (%) 40 Recoil Reduction 2 Offensive Hacking 10 Item Schematics ----------------- None Robot Schematics ------------------ None Fabricated ------------ Nothing Repaired ---------- Lgt. Treads | 18% | -10/Materials | Broken Alien Tech Used ----------------- None Achievements -------------- None Challenges ------------ None Game ------ Seed LargeGravmagStorage Manual? 0 Play Time 00:17:27 Cumulative 368.0 hours Start 2025.07.05 @ 02:46:38 End 2025.07.05 @ 03:06:02 Sessions 1 Manual Loads 0 Difficulty Rogue Special Mode None Game No. 213 Rogue 213 Adventurer 0 Explorer 0 Win Type - Total 4 Types 2/0/1/1/0/0/0/0/0/0 Lore% 84 Gallery% 73 Achievement% 67 Wizard Run 0 Options --------- Layout 2 ASCII 0 Keyboard 1 Movement Vi Keybinds 0 Fullscreen 2 Font 16/Tamsyn Map View 55x47 Zoom Use 0% Tactical HUD 1 Map Filters NONE Filters NONE Steam 0 RUN: 190c7034-4e89-472d-81f2-6b07e3372d1c